bitfinex-derivatives/quotes_ETHF0:USTF0_20251001
["timestamp","ask_amount","ask_price","bid_price","bid_amount"]
[1759333331929,3.88218744,4338.6,4338.5,0.72670243]
[1759333332227,3.88218744,4338.6,4338.5,1.10070243]
[1759333333734,3.88218744,4338.6,4337.5,0.1986]
[1759333333932,3.2078,4338.0,4337.9,0.7333]
[1759333334237,3.8801933,4338.0,4337.9,0.8383]
[1759333334435,3.8801933,4338.0,4337.9,5.87214401]
[1759333335038,3.8801933,4338.0,4337.9,5.87452621]
[1759333335331,3.8801933,4338.0,4337.9,5.76952621]
[1759333335936,3.8801933,4338.0,4337.9,6.53592621]
[1759333337034,3.8801933,4338.0,4337.9,6.29592621]
[1759333337233,3.8801933,4338.0,4337.9,6.53592621]
[1759333338430,3.8801933,4338.0,4337.9,6.29592621]
[1759333338631,3.8801933,4338.0,4337.9,6.53592621]
[1759333339132,3.8801933,4338.0,4337.9,0.5287822]
[1759333339332,5.53409876,4338.0,4337.9,0.7687822]
[1759333340138,5.53409876,4338.0,4337.9,0.5287822]
[1759333340327,3.8801933,4338.0,4337.8,0.614]
[1759333340529,0.6723933,4337.9,4337.8,0.614]
[1759333341335,1.3871933,4337.9,4337.8,0.24166591]
[1759333341534,1.3871933,4337.9,4337.8,0.59386591]
[1759333342237,1.3871933,4337.9,4337.6,40.8]
[1759333342439,1.2767,4337.9,4337.8,6.17624401]
[1759333342644,1.93238704,4337.9,4337.8,6.17624401]
[1759333343234,1.93238704,4337.9,4337.8,6.17796224]
[1759333343431,3.5873893,4337.9,4337.8,5.93796224]
[1759333343632,3.5873893,4337.9,4337.8,0.239]
[1759333344433,1.93238704,4337.9,4337.8,0.5938]
[1759333344639,1.93238704,4337.9,4337.8,0.98449907]
[1759333346741,1.57578704,4337.9,4337.8,6.60094308]
[1759333348952,1.94198704,4337.9,4337.8,6.60094308]
[1759333349951,1.94198704,4337.9,4337.8,6.01834308]
[1759333351853,1.94198704,4337.9,4337.8,6.60094308]
[1759333352755,1.94198704,4337.9,4337.8,6.36194308]
[1759333353054,1.94198704,4337.9,4337.8,6.60094308]
[1759333353442,1.94198704,4337.9,4337.8,6.01834308]
[1759333353847,5.14978704,4337.9,4337.8,6.01834308]
[1759333356459,5.14978704,4337.9,4337.8,6.60094308]
[1759333357156,5.14978704,4337.9,4337.8,5.03624308]
[1759333357360,5.14978704,4337.9,4337.8,5.63004308]
[1759333357658,5.14978704,4337.9,4337.8,6.60094308]
[1759333359661,5.14978704,4337.9,4337.8,1.56709907]
[1759333360457,3.86348704,4337.9,4337.8,1.56709907]
[1759333360656,3.86348704,4337.9,4337.8,6.60094308]
[1759333361065,4.78418704,4337.9,4337.8,6.60094308]
[1759333361754,4.78418704,4337.9,4337.8,1.56709907]
[1759333363157,5.15038704,4337.9,4337.8,1.56609907]
[1759333363559,4.78418704,4337.9,4337.8,1.56609907]
[1759333363865,3.86348704,4337.9,4337.8,6.59994308]
[1759333365560,3.86348704,4337.9,4337.8,11.59994308]
[1759333366061,4.78418704,4337.9,4337.8,6.36194308]
[1759333366252,4.78418704,4337.9,4337.8,47.39994308]
[1759333367055,4.42768704,4337.9,4337.8,47.39994308]
[1759333367862,4.31580057,4337.9,4337.8,47.39994308]
[1759333368365,3.2078,4337.9,4337.8,47.39994308]
[1759333370553,3.772,4337.9,4337.8,47.39994308]
[1759333373767,3.2078,4337.9,4337.8,47.39994308]
[1759333374366,3.7397,4337.9,4337.8,47.39994308]
[1759333376565,3.7397,4337.9,4337.8,47.16194308]
[1759333376764,3.7397,4337.9,4337.8,47.39994308]
[1759333376967,5.01435038,4337.9,4337.8,6.59994308]
[1759333377467,5.01435038,4337.9,4337.8,6.01734308]
[1759333379169,5.01435038,4337.9,4337.8,0.98349907]
[1759333380964,5.01435038,4337.9,4337.8,0.59519907]
[1759333381571,3.75155038,4337.9,4337.8,6.59874308]
[1759333382771,3.2078,4337.9,4337.8,6.59874308]
[1759333386270,3.2078,4337.9,4337.8,7.01340308]
[1759333388970,0.5319,4338.2,4338.1,1.16833]
[1759333389174,0.5319,4338.2,4338.1,1.99433]
[1759333389476,0.5319,4338.2,4338.1,47.82817401]
[1759333389969,3.2078,4338.4,4338.3,1.16831]
[1759333390172,4.0959,4338.4,4338.3,1.99431]
[1759333390368,4.6307803,4338.4,4338.3,1.99431]
[1759333390574,5.0054803,4338.4,4338.3,1.40631]
[1759333391472,0.5348803,4338.4,4338.3,7.02815401]
[1759333391678,0.89009414,4338.6,4338.5,1.75629]
[1759333391871,1.79970053,4338.6,4338.5,1.99429]
[1759333392070,1.79970053,4338.6,4338.5,1.40629]
[1759333395579,1.79970053,4338.6,4338.5,1.02459]
[1759333396078,1.79970053,4338.6,4338.5,0.78659]
[1759333396282,1.79970053,4338.6,4338.5,0.65259]
[1759333396580,1.79970053,4338.6,4338.5,1.02459]
[1759333401483,1.79970053,4338.6,4338.5,1.92989]
[1759333403079,1.79970053,4338.6,4338.5,0.65259]
[1759333403988,1.79970053,4338.6,4338.5,1.02129]
[1759333404186,0.53490639,4338.6,4338.5,7.07763401]
[1759333404484,4.1355,4339.2,4339.1,1.2944]
[1759333404790,1.2881,4339.4,4339.3,1.2944]
[1759333404981,1.2881,4339.4,4339.3,42.3324]
[1759333405183,1.2881,4339.4,4339.3,5.78374401]
[1759333405389,1.29024619,4339.4,4339.3,6.02174401]
[1759333405792,1.29024619,4339.4,4339.3,46.82174401]
[1759333406391,0.00214619,4339.4,4339.3,47.36624401]
[1759333406583,0.55844619,4339.4,4339.3,47.36624401]
[1759333407991,0.55844619,4339.4,4339.3,47.12824401]
[1759333408496,0.55844619,4339.4,4339.3,47.36624401]
[1759333409394,0.55844619,4339.4,4339.3,47.12824401]
[1759333409695,0.55844619,4339.4,4339.3,47.36624401]
[1759333410299,0.55844619,4339.4,4339.3,40.8]
[1759333410595,1.2881,4339.3,4339.1,0.41453]
[1759333410796,4.4959,4339.2,4339.1,0.41453]
[1759333410992,4.4959,4339.2,4339.1,0.65253]
[1759333416396,5.01480576,4339.2,4339.1,0.65253]
[1759333417897,5.01480576,4339.2,4339.1,0.41453]
[1759333418095,5.01480576,4339.2,4339.1,0.65253]
[1759333421307,5.01480576,4339.2,4339.1,1.04313]
[1759333422707,5.01480576,4339.2,4339.1,0.65253]
[1759333423807,5.01480576,4339.2,4339.1,1.04313]
[1759333424004,5.01480576,4339.2,4339.1,6.98077401]
[1759333424603,4.4959,4339.2,4339.1,6.98077401]
[1759333425704,5.01501489,4339.2,4339.1,6.07697401]
[1759333428110,5.01501489,4339.2,4339.1,5.68637401]
[1759333428305,5.01501489,4339.2,4339.1,0.41453]
[1759333429714,5.01501489,4339.2,4339.1,0.65253]
[1759333430908,5.01501489,4339.2,4339.1,1.04313]
[1759333431112,5.01501489,4339.2,4339.1,1.94693]
[1759333431707,5.01501489,4339.2,4339.1,1.40243]
[1759333431909,5.01501489,4339.2,4339.1,1.04313]
[1759333435816,5.01501489,4339.2,4339.1,0.65253]
[1759333436017,5.01501489,4339.2,4339.1,1.02053]
[1759333436614,5.01501489,4339.2,4339.1,6.97537401]
[1759333437018,5.01501489,4339.2,4339.1,6.73737401]
[1759333437213,5.01501489,4339.2,4339.1,6.97537401]
[1759333437615,5.01501489,4339.2,4339.1,6.73737401]
[1759333437816,5.01501489,4339.2,4339.1,6.97537401]
[1759333439221,5.01501489,4339.2,4339.1,6.41787401]
[1759333439519,5.01501489,4339.2,4339.1,5.68637401]
[1759333439919,5.01501489,4339.2,4339.1,5.44837401]
[1759333440119,5.01501489,4339.2,4339.1,5.68637401]
[1759333440520,5.01501489,4339.2,4339.1,5.44837401]
[1759333440710,5.01501489,4339.2,4339.1,5.68637401]
[1759333440911,5.01501489,4339.2,4339.1,5.44837401]
[1759333441114,5.01501489,4339.2,4339.1,6.05437401]
[1759333441419,5.01501489,4339.2,4339.1,6.41787401]
[1759333441931,5.01501489,4339.2,4339.1,5.68637401]
[1759333442222,5.01501489,4339.2,4339.1,5.44837401]
[1759333442421,5.01501489,4339.2,4339.1,5.68637401]
[1759333443326,4.28321489,4339.2,4339.1,6.97537401]
[1759333443827,3.72691489,4339.2,4339.1,6.97537401]
[1759333444327,5.03811489,4339.2,4339.1,6.17987401]
[1759333444528,5.03811489,4339.2,4339.1,6.41787401]
[1759333445123,5.03811489,4339.2,4339.1,6.97537401]
[1759333446131,5.03811489,4339.2,4339.1,6.41787401]
[1759333449833,5.03811489,4339.2,4339.1,6.05437401]
[1759333450129,4.67971489,4339.2,4339.1,6.97537401]
[1759333450326,4.29331489,4339.2,4339.1,6.97537401]
[1759333452327,4.67971489,4339.2,4339.1,6.97537401]
[1759333454029,5.03811489,4339.2,4339.1,6.05337401]
[1759333454930,5.03811489,4339.2,4339.1,0.41453]
[1759333455133,5.03811489,4339.2,4339.1,0.65153]
[1759333465152,5.03811489,4339.2,4339.1,0.41453]
[1759333465353,5.03811489,4339.2,4339.1,0.65153]
[1759333466253,5.03811489,4339.2,4339.1,0.41453]
[1759333466653,5.03811489,4339.2,4339.1,0.65153]
[1759333467447,1.2843,4338.2,4338.1,0.41463]
[1759333467644,5.01217908,4338.2,4338.1,0.41463]
[1759333467847,4.65897908,4338.2,4338.1,6.74067401]
[1759333468249,5.01217908,4338.2,4338.1,6.74067401]
[1759333468755,5.01217908,4338.2,4338.1,0.41463]
[1759333469047,5.01217908,4338.2,4338.1,6.74067401]
[1759333469655,4.4921,4338.2,4338.1,6.74067401]
[1759333470756,4.1389,4338.2,4338.1,6.74067401]
[1759333471453,3.7603,4338.2,4338.1,6.74067401]
[1759333472245,4.4921,4338.2,4338.1,6.74067401]
[1759333472858,4.4921,4338.2,4338.1,6.18587401]
[1759333473154,4.4921,4338.2,4338.1,5.82717401]
[1759333473352,4.4921,4338.2,4338.1,0.65163]
[1759333473556,4.4921,4338.2,4338.1,6.06417401]
[1759333473746,4.4921,4338.2,4338.1,0.65163]
[1759333474352,5.01118715,4338.2,4338.1,0.65163]
[1759333475259,1.2843,4337.9,4337.8,0.00239907]
[1759333475460,1.80338715,4337.9,4337.8,0.00239907]
[1759333478558,2.04038715,4337.9,4337.8,0.00239907]
[1759333482562,2.45505715,4337.9,4337.8,0.00239907]
[1759333488062,2.45505715,4337.9,4337.8,0.73979907]
[1759333488261,2.21805715,4337.9,4337.8,6.18832308]
[1759333488566,1.69897,4337.9,4337.8,5.77364308]
[1759333489269,1.69897,4337.9,4337.8,0.00239907]
[1759333489270,2.45321103,4337.9,4337.8,0.00239907]
[1759333492959,0.79336,4337.1,4337.0,0.41475]
[1759333493168,4.90686,4337.1,4337.0,0.41475]
[1759333493466,4.90686,4337.1,4337.0,5.44859401]
[1759333494069,4.90686,4337.1,4337.0,5.45021172]
[1759333494771,4.90686,4337.1,4337.0,5.39556172]
[1759333496066,4.90686,4337.1,4337.0,5.76106172]
[1759333496274,4.90686,4337.1,4337.0,5.03546172]
[1759333498278,4.90686,4337.1,4337.0,5.76106172]
[1759333499973,4.90686,4337.1,4337.0,5.39556172]
[1759333500371,5.425613,4337.1,4337.0,5.39556172]
[1759333500678,5.425613,4337.1,4337.0,5.03546172]
[1759333500878,5.425613,4337.1,4337.0,0.00161771]
[1759333502374,5.425613,4337.1,4337.0,0.36171771]
[1759333503477,5.425613,4337.1,4337.0,0.00161771]
[1759333503782,1.64173,4336.3,4336.2,0.3601]
[1759333503977,5.37008033,4336.3,4336.2,0.3601]
[1759333504174,5.37008033,4336.3,4336.2,5.39394401]
[1759333504571,5.37008033,4336.3,4336.2,5.80878401]
[1759333504776,5.37205659,4336.3,4336.2,5.81062985]
[1759333505072,4.95722659,4336.3,4336.2,6.72182985]
[1759333505271,4.95722659,4336.3,4336.2,0.41668584]
[1759333505484,9.77205659,4336.3,4336.2,5.03568985]
[1759333505676,14.17205659,4336.3,4336.2,5.03568985]
[1759333506379,0.6978,4335.7,4335.6,0.775]
[1759333506583,4.95525033,4335.7,4335.6,1.012]
[1759333506777,4.95525033,4335.7,4335.6,6.95704401]
[1759333506977,4.95525033,4335.7,4335.6,6.41134401]
[1759333507284,4.4347,4335.7,4335.6,6.41134401]
[1759333507581,4.4347,4335.7,4335.6,6.41344012]
[1759333508181,4.4347,4335.7,4335.6,6.95914012]
[1759333508689,4.4347,4335.7,4335.6,6.41344012]
[1759333509283,4.4347,4335.7,4335.6,6.95914012]
[1759333509784,3.2078,4335.7,4335.6,6.95914012]
[1759333509981,3.2078,4335.7,4335.6,6.72214012]
[1759333510182,3.2078,4335.7,4335.6,11.95914012]
[1759333510581,1.03681,4337.4,4335.6,11.95914012]
[1759333510582,3.2078,4336.1,4336.0,1.90866]
[1759333510786,3.2078,4336.1,4336.0,2.14566]
[1759333511082,3.2078,4336.1,4336.0,2.98852775]
[1759333511681,3.21000887,4336.1,4336.0,2.98852775]
[1759333511886,3.55630887,4336.1,4336.0,2.98852775]
[1759333512081,3.55630887,4336.1,4336.0,1.32066]
[1759333512082,3.90780887,4336.1,4336.0,1.32066]
[1759333512290,3.21000887,4336.1,4336.0,2.75152775]
[1759333513581,0.00220887,4336.1,4336.0,2.75152775]
[1759333515783,3.21000887,4336.1,4336.0,2.75152775]
[1759333515981,3.55630887,4336.1,4336.0,2.75152775]
[1759333516182,3.55630887,4336.1,4336.0,2.98852775]
[1759333518787,3.21000887,4336.1,4336.0,2.98852775]
[1759333522897,1.2968,4337.2,4337.1,0.78686]
[1759333523096,1.8169123,4337.2,4337.1,1.56616]
[1759333523783,1.81920029,4337.2,4337.1,1.56616]
[1759333526796,1.81920029,4337.2,4337.1,1.93856]
[1759333526996,1.81920029,4337.2,4337.1,0.65176]
[1759333527297,4.86280226,4338.6,4338.0,0.2216]
[1759333527498,11.9278,4338.6,4338.5,1.5059]
[1759333527797,3.4448,4339.1,4339.0,1.54807]
[1759333527993,3.2078,4339.1,4339.0,1.92047]
[1759333528386,3.21053267,4339.1,4339.0,1.92336951]
[1759333528992,3.21053267,4339.1,4339.0,1.18546951]
[1759333529197,8.21053267,4339.1,4339.0,0.22449951]
[1759333529403,8.21053267,4339.1,4339.0,0.00289951]
[1759333529705,16.69053267,4339.1,4339.0,0.00289951]
[1759333529889,0.41457,4339.0,4338.7,0.4146]
[1759333530094,1.5,4339.0,4338.9,0.96098]
[1759333530294,3.44753267,4339.1,4339.0,0.768]
[1759333530993,3.44753267,4339.1,4339.0,0.77021589]
[1759333532296,8.44753267,4339.1,4339.0,0.00221589]
[1759333532497,17.62753267,4339.1,4338.5,0.2216]
[1759333532697,3.2078,4338.6,4338.5,0.2216]
[1759333532901,12.0148,4338.6,4337.9,0.5464]
[1759333533100,3.2078,4338.1,4338.0,0.768]
[1759333533397,3.4448,4338.1,4338.0,0.00200386]
[1759333534103,3.4448,4338.1,4338.0,0.77000386]
[1759333534300,17.4948,4338.1,4338.0,0.22360386]
[1759333534597,17.4948,4338.1,4338.0,0.00200386]
[1759333534797,0.4147,4337.7,4337.2,0.5464]
[1759333534994,0.4147,4337.7,4336.5,0.2216]
[1759333534995,0.41478,4336.8,4336.7,0.5464]
[1759333535196,13.05958,4336.8,4336.7,0.5464]
[1759333535396,13.05958,4336.8,4336.7,0.9119]
[1759333535397,12.4078,4336.8,4336.7,0.9119]
[1759333535594,0.41476,4337.1,4337.0,0.2216]
[1759333535799,3.2078,4337.5,4337.1,0.5464]
[1759333536000,0.65173,4337.4,4337.3,0.9119]
[1759333536404,0.41475,4337.1,4337.0,0.22439811]
[1759333536604,9.91175,4337.1,4337.0,0.22439811]
[1759333536996,0.41475,4337.1,4337.0,1.50869811]
[1759333537201,0.65175,4337.1,4337.0,1.50869811]
[1759333538003,0.41474,4337.3,4337.0,0.96229811]
[1759333538213,3.2078,4337.5,4337.4,1.2843]
[1759333538509,3.4448,4337.5,4337.4,1.2843]
[1759333538912,3.2078,4337.5,4337.4,1.2843]
[1759333539315,3.94926353,4337.5,4337.4,1.2843]
[1759333539913,3.71226353,4337.5,4337.4,1.2843]
[1759333540115,3.94926353,4337.5,4337.4,1.2843]
[1759333540816,3.94926353,4337.5,4337.4,0.9119]
[1759333541119,3.94926353,4337.5,4337.4,0.5464]
[1759333542613,3.71226353,4337.5,4337.4,1.2843]
[1759333542817,3.94926353,4337.5,4337.4,0.9119]
[1759333543114,3.94926353,4337.5,4337.4,0.5464]
[1759333545916,3.94926353,4337.5,4337.4,0.9119]
[1759333546611,4.36397353,4337.5,4337.4,0.9119]
[1759333547123,4.36397353,4337.5,4337.4,1.2843]
[1759333547518,3.71226353,4337.5,4337.4,1.69902]
[1759333547721,3.94926353,4337.5,4337.4,1.69902]
[1759333548131,3.71226353,4337.5,4337.4,1.69902]
[1759333548329,3.94926353,4337.5,4337.4,1.69902]
[1759333549215,4.36397353,4337.5,4337.4,1.69902]
[1759333549419,4.36397353,4337.5,4337.4,0.9119]
[1759333549616,14.12397353,4337.5,4337.4,0.5464]
[1759333550311,13.88697353,4337.5,4337.4,0.5464]
[1759333550512,14.12397353,4337.5,4337.4,0.5464]
[1759333551113,14.12397353,4337.5,4337.4,0.9119]
[1759333551521,14.12397353,4337.5,4337.4,0.5464]
[1759333552018,0.41475,4337.1,4337.0,0.22439811]
[1759333552223,10.2168031,4337.1,4337.0,0.22439811]
[1759333552626,10.2168031,4337.1,4337.0,0.77079811]
[1759333555829,10.2168031,4337.1,4337.0,1.13629811]
[1759333556223,10.2168031,4337.1,4337.0,1.91305811]
[1759333556423,1.8098031,4337.1,4337.0,1.49829811]
[1759333556628,9.2368031,4337.1,4337.0,1.49829811]
[1759333557026,2.9568031,4337.1,4337.0,1.91305811]
[1759333557229,9.8068031,4337.1,4337.0,1.49829811]
[1759333557730,9.8068031,4337.1,4337.0,1.91305811]
[1759333558222,4.1468031,4337.1,4337.0,1.49829811]
[1759333558428,9.4568031,4337.1,4337.0,0.77079811]
[1759333563533,9.4568031,4337.1,4337.0,0.00279811]
[1759333563726,0.7334,4336.6,4336.0,0.63645]
[1759333563926,0.7334,4336.1,4336.0,0.6134]
[1759333564228,0.7410531,4336.1,4336.0,0.9754]
[1759333564629,0.7334,4335.7,4335.6,0.80669]
[1759333564835,1.47744082,4335.7,4335.6,1.17084679]
[1759333565231,4.68524082,4335.7,4335.6,0.80884679]
[1759333565430,4.68524082,4335.7,4335.6,1.17084679]
[1759333565829,1.47744082,4335.7,4335.6,1.74544679]
[1759333566034,1.11074082,4335.7,4335.6,1.74544679]
[1759333566824,4.31854082,4335.7,4335.6,1.74544679]
[1759333567236,4.91444082,4335.7,4335.6,0.57675679]
[1759333568036,4.91444082,4335.7,4335.6,0.00215679]
[1759333568428,4.68524082,4335.7,4335.6,0.96855679]
[1759333569039,4.91444082,4335.7,4335.6,0.57675679]
[1759333569235,4.91444082,4335.7,4335.6,0.00215679]
[1759333570532,4.08254082,4335.7,4335.6,1.33055679]
[1759333570732,1.47908037,4335.7,4335.6,1.33055679]
[1759333571132,4.68688037,4335.7,4335.6,1.33055679]
[1759333571640,5.10176037,4335.7,4335.6,1.74544679]
[1759333571932,5.33096037,4335.7,4335.6,1.38344679]
[1759333572138,4.68688037,4335.7,4335.6,1.38344679]
[1759333572340,4.68688037,4335.7,4335.6,1.74544679]
[1759333572927,5.33096037,4335.7,4335.6,0.99164679]
[1759333573237,5.33096037,4335.7,4335.6,1.38344679]
[1759333573436,4.68688037,4335.7,4335.6,1.38344679]
[1759333574438,4.68688037,4335.7,4335.6,1.74544679]
[1759333577640,5.10176037,4335.7,4335.6,1.33055679]
[1759333578042,5.10176037,4335.7,4335.6,0.57675679]
[1759333578043,5.33096037,4335.7,4335.6,0.57675679]
[1759333579042,5.33096037,4335.7,4335.0,0.2263]
[1759333579043,0.41494,4335.1,4335.0,0.2263]
[1759333579242,1.37759,4334.6,4334.5,0.6413]
[1759333579441,1.1986,4334.6,4334.5,0.6413]
[1759333579636,0.3667,4334.3,4334.2,0.5746]
[1759333579943,0.9088,4334.1,4334.0,0.8097]
[1759333580141,4.85932006,4334.1,4334.0,0.81254748]
[1759333580337,3.79,4334.1,4334.0,1.57114748]
[1759333580543,0.3462,4334.8,4334.7,1.75698]
[1759333580741,9.74858009,4334.8,4334.7,1.75698]
[1759333581347,10.09474275,4334.8,4334.7,1.75698]
[1759333581746,11.53474275,4334.8,4334.7,1.75698]
[1759333582348,1.1448,4334.8,4334.7,0.5834]
[1759333582548,6.8848,4334.8,4334.7,0.5834]
[1759333582749,7.39107279,4334.8,4334.7,0.5834]
[1759333582951,0.6924,4334.6,4334.5,0.8035]
[1759333583243,4.3526,4334.6,4334.5,0.8035]
[1759333583550,4.1362,4334.6,4334.5,1.1914]
[1759333584446,0.9284,4334.6,4334.5,1.5579]
[1759333585646,0.9284,4334.6,4334.5,1.1914]
[1759333585942,1.1569,4334.6,4334.5,0.5834]
[1759333586152,4.1287,4334.6,4334.5,0.5834]
[1759333586354,4.3647,4334.6,4334.5,0.5834]
[1759333586555,0.3657,4334.4,4334.3,0.5815]
[1759333586746,0.3657,4334.4,4334.0,0.22914748]
[1759333586747,0.78074,4334.1,4334.0,0.22914748]
[1759333586951,4.59024,4334.1,4334.0,0.61294748]
[1759333587152,4.1752,4334.1,4334.0,0.97944748]
[1759333587358,4.1752,4334.1,4334.0,1.56094748]
[1759333588258,4.4037,4334.1,4334.0,0.58434748]
[1759333588566,4.81874,4334.1,4334.0,0.58434748]
[1759333589059,4.59024,4334.1,4334.0,1.60399748]
[1759333590057,4.1752,4334.1,4334.0,1.97049748]
[1759333590263,1.14644,4334.1,4334.0,1.97049748]
[1759333590463,1.38244,4334.1,4334.0,1.97049748]
[1759333590963,0.9674,4334.1,4334.0,1.97049748]
[1759333592163,1.38244,4334.1,4334.0,1.97049748]
[1759333593368,1.88993227,4334.1,4334.0,1.97049748]
[1759333593666,1.88993227,4334.1,4334.0,1.55544748]
[1759333593967,1.38244,4334.1,4334.0,1.55544748]
[1759333594468,1.88999526,4334.1,4334.0,1.55544748]
[1759333594664,1.88999526,4334.1,4334.0,1.97049748]
[1759333594857,1.47495526,4334.1,4334.0,1.97049748]
[1759333595059,3.4363,4334.6,4334.1,0.41502]
[1759333595359,1.8899449,4334.5,4334.4,1.3318]
[1759333595564,10.7484449,4334.5,4334.4,0.9653]
[1759333596470,10.7484449,4334.5,4334.4,0.5815]
[1759333596967,10.5124449,4334.5,4334.4,0.5815]
[1759333597159,10.3684449,4334.5,4334.4,0.9653]
[1759333597469,10.3684449,4334.5,4334.4,0.5815]
[1759333598266,10.1399449,4334.5,4334.4,0.9653]
[1759333599274,10.3684449,4334.5,4334.4,0.9653]
[1759333599473,10.1399449,4334.5,4334.4,0.9653]
[1759333601270,10.1399449,4334.5,4334.4,0.5815]
[1759333601271,10.3684449,4334.5,4334.4,0.5815]
[1759333601471,10.1399449,4334.5,4334.4,0.9653]
[1759333602070,10.3684449,4334.5,4334.4,0.9653]
[1759333602572,10.1399449,4334.5,4334.4,0.9653]
[1759333603372,9.9039449,4334.5,4334.4,0.9653]
[1759333603574,10.3684449,4334.5,4334.4,0.9653]
[1759333603769,10.1399449,4334.5,4334.4,0.9653]
[1759333604074,10.2799449,4334.5,4334.4,0.9653]
[1759333604274,10.5084449,4334.5,4334.4,0.5815]
[1759333604667,1.14644,4334.1,4334.0,1.18894748]
[1759333604873,5.3262849,4334.1,4334.0,0.58434748]
[1759333605978,5.0977849,4334.1,4334.0,1.18894748]
[1759333606174,1.8899849,4334.1,4334.0,1.18894748]
[1759333606379,1.8899849,4334.1,4334.0,1.55544748]
[1759333607180,1.8899849,4334.1,4334.0,1.97049748]
[1759333608080,1.8899849,4334.1,4334.0,1.55544748]
[1759333608580,5.3262849,4334.1,4334.0,1.18894748]
[1759333609480,13.6262849,4334.1,4334.0,0.00284748]
[1759333609873,0.3657,4333.2,4333.1,1.74693]
[1759333610183,0.8732449,4333.2,4333.1,1.74693]
[1759333610577,0.8732449,4333.2,4333.1,1.3318]
[1759333610772,0.5075449,4333.2,4333.1,1.3346752]
[1759333610978,0.5075449,4333.3,4333.1,1.7498052]
[1759333611179,0.5075449,4333.2,4333.1,1.3346752]
[1759333611381,1.14652,4333.3,4333.2,1.3318]
[1759333611573,1.65580266,4333.3,4333.2,1.3318]
[1759333612078,10.84030266,4333.3,4333.2,0.5815]
[1759333613881,1.29292,4333.2,4333.1,0.5797752]
[1759333614078,10.19220266,4333.2,4333.1,0.5797752]
[1759333615286,10.21920266,4333.2,4333.1,0.9302752]
[1759333615787,10.21920266,4333.2,4333.1,1.3063752]
[1759333616984,10.42820266,4333.2,4333.1,0.0028752]
[1759333617291,2.03820266,4333.2,4333.1,0.0028752]
[1759333617588,2.03820266,4333.2,4333.1,0.5797752]
[1759333618982,10.43820266,4333.2,4333.1,0.5797752]
[1759333621287,10.43820266,4333.2,4333.1,0.0028752]
[1759333621482,1.70423,4332.1,4332.0,0.7266]
[1759333621682,5.14803,4332.1,4332.0,0.7266]
[1759333621891,5.6582039,4332.1,4332.0,0.7266]
[1759333622390,5.66040627,4332.1,4332.0,0.72917516]
[1759333623095,15.09040627,4332.1,4332.0,0.00257516]
[1759333623386,15.09040627,4332.1,4332.0,1.52627516]
[1759333623387,4.88010627,4332.1,4332.0,1.52627516]
[1759333623591,3.72017627,4332.1,4332.0,1.52627516]
[1759333624187,0.00220237,4332.1,4332.0,1.52627516]
[1759333624495,0.00220237,4332.1,4332.0,6.52627516]
[1759333626985,0.74690237,4332.1,4332.0,1.52627516]
[1759333627292,4.49900237,4332.1,4332.0,1.52627516]
[1759333627595,5.00853807,4332.1,4332.0,1.30607516]
[1759333627796,5.00853807,4332.1,4332.0,0.92997516]
[1759333628591,0.51173807,4332.1,4332.0,1.52627516]
[1759333628893,0.00220237,4332.1,4332.0,1.52627516]
[1759333629789,0.37620237,4332.1,4332.0,1.52627516]
[1759333629993,1.80058995,4332.1,4332.0,0.92997516]
[1759333630202,1.80058995,4332.1,4332.0,0.00257516]
[1759333630497,10.10058995,4332.1,4332.0,0.00257516]
[1759333632291,10.10058995,4332.1,4332.0,0.92997516]
[1759333632493,1.80058995,4332.1,4332.0,0.92997516]
[1759333632798,10.70058995,4332.1,4332.0,0.92997516]
[1759333633191,10.70058995,4332.1,4332.0,0.00257516]
[1759333633697,0.51158995,4332.1,4332.0,6.52627516]
[1759333633892,0.00220237,4332.1,4332.0,6.52627516]
[1759333634089,0.00220237,4332.1,4332.0,1.52627516]
[1759333634289,0.37620237,4332.1,4332.0,1.52627516]
[1759333634893,0.00220237,4332.1,4332.0,1.52627516]
[1759333635288,0.37620237,4332.1,4332.0,1.52627516]
[1759333635695,0.37620237,4332.1,4332.0,1.94151516]
[1759333635894,0.00220237,4332.1,4332.0,1.94151516]
[1759333636096,0.37620237,4332.1,4332.0,1.94151516]
[1759333636296,0.88567854,4332.1,4332.0,1.94151516]
[1759333637101,1.80067854,4332.1,4332.0,1.30607516]
[1759333637297,1.25637854,4332.1,4332.0,1.30607516]
[1759333637503,0.51167854,4332.1,4332.0,1.52627516]
[1759333638000,1.12167854,4332.1,4332.0,1.52627516]
[1759333638897,0.74767854,4332.1,4332.0,1.52627516]
[1759333639292,1.16290854,4332.1,4332.0,1.94151516]
[1759333640099,1.16290854,4332.1,4332.0,1.52627516]
[1759333641703,1.51740854,4332.1,4332.0,1.52627516]
[1759333642201,1.89890854,4332.1,4332.0,1.52627516]
[1759333642592,0.51167854,4332.1,4332.0,1.94151516]
[1759333643098,1.28140854,4332.1,4332.0,1.52627516]
[1759333643802,11.23730854,4332.1,4332.0,0.00257516]
[1759333644504,11.47330854,4332.1,4332.0,0.90847516]
[1759333644903,11.47330854,4332.1,4332.0,0.54047516]
[1759333645504,11.47330854,4332.1,4332.0,0.00257516]
[1759333651307,11.47330854,4332.1,4332.0,0.90847516]
[1759333651600,11.47330854,4332.1,4332.0,0.00257516]
[1759333655808,11.47330854,4332.1,4332.0,5.16e-06]
[1759333656011,0.41533,4331.1,4331.0,0.2202]
[1759333656211,1.27410617,4331.1,4331.0,0.9496]
[1759333656509,1.27410617,4331.1,4331.0,1.4875]
[1759333656905,1.27410617,4331.1,4331.0,1.48993222]
[1759333659608,2.18590617,4331.1,4331.0,1.48993222]
[1759333660010,0.92480617,4331.1,4331.0,1.48993222]
[1759333661211,0.92480617,4331.1,4331.0,1.90527222]
[1759333661713,0.50947617,4331.1,4331.0,1.90527222]
[1759333663011,0.50947617,4331.1,4331.0,6.90527222]
[1759333663312,0.65128,4331.6,4331.5,1.4871]
[1759333663609,2.42591329,4331.6,4331.5,1.4871]
[1759333663815,2.42591329,4331.6,4331.5,1.2673]
[1759333664114,2.42591329,4331.6,4331.5,0.9059]
[1759333665317,2.42591329,4331.6,4331.5,1.4871]
[1759333667007,2.42591329,4331.6,4331.5,1.2673]
[1759333667405,2.42591329,4331.6,4331.5,0.9059]
[1759333667612,0.92881329,4331.6,4331.5,1.90239]
[1759333667816,0.74953329,4331.6,4331.5,1.90239]
[1759333668007,0.51353329,4331.6,4331.5,1.90239]
[1759333668319,0.51353329,4331.6,4331.5,6.90239]
[1759333671112,0.51353329,4331.6,4331.5,6.4871]
[1759333671619,2.42591329,4331.6,4331.5,0.9059]
[1759333671814,0.41533,4331.1,4331.0,0.59063222]